bitfinex/quotes_ETHUSD_20250711
["timestamp","ask_amount","ask_price","bid_price","bid_amount"]
[1752259031229,7.61611437,2987.7,2987.6,19.75416829]
[1752259032882,8.72611437,2987.7,2987.6,19.75416829]
[1752259033243,8.72611437,2987.7,2987.6,10.25416829]
[1752259033582,8.72611437,2987.7,2987.6,8.65236829]
[1752259034174,8.72611437,2987.7,2987.6,8.65136829]
[1752259034768,8.72611437,2987.7,2987.6,3.51436829]
[1752259034973,8.72611437,2987.7,2987.6,8.65136829]
[1752259035147,9.83611437,2987.7,2987.6,8.65136829]
[1752259035353,9.83611437,2987.7,2987.6,0.1672]
[1752259035588,10.30151437,2987.7,2987.6,0.1672]
[1752259035758,10.30151437,2987.7,2987.6,5.3042]
[1752259036152,10.30151437,2987.7,2987.6,0.1672]
[1752259036462,9.83611437,2987.7,2987.6,5.3042]
[1752259037083,9.83611437,2987.7,2987.6,0.1672]
[1752259037285,9.83611437,2987.7,2987.6,5.3042]
[1752259037785,11.38071437,2987.7,2987.6,0.1672]
[1752259037977,11.38071437,2987.7,2987.6,5.3042]
[1752259038577,10.94611437,2987.7,2987.6,5.3042]
[1752259039114,10.94611437,2987.7,2987.5,0.001]
[1752259039115,11.38071437,2987.7,2987.5,0.001]
[1752259039252,1.13807144,2987.6,2987.5,0.001]
[1752259039453,0.4346,2987.6,2987.5,5.137]
[1752259039687,10.94611437,2987.7,2987.5,5.137]
[1752259039888,10.94611437,2987.7,2987.5,5.217]
[1752259040092,12.05611437,2987.7,2987.5,5.217]
[1752259040383,12.05611437,2987.7,2987.6,3.38063997]
[1752259040599,12.05611437,2987.7,2987.6,3.54783997]
[1752259040750,12.05611437,2987.7,2987.6,13.99565217]
[1752259040953,12.05611437,2987.7,2987.6,13.96218049]
[1752259042607,13.16611437,2987.7,2987.6,13.51436829]
[1752259043911,13.16611437,2987.7,2987.6,10.1672]
[1752259044115,13.60071437,2987.7,2987.6,0.1672]
[1752259044294,13.60071437,2987.7,2987.6,5.136]
[1752259045092,14.71071437,2987.7,2987.6,5.136]
[1752259047401,15.82071437,2987.7,2987.6,5.136]
[1752259048480,15.82071437,2987.7,2987.5,0.1682]
[1752259048681,15.38611437,2987.7,2987.6,5.135]
[1752259049297,15.82071437,2987.7,2987.6,5.135]
[1752259049766,16.93071437,2987.7,2987.6,5.135]
[1752259050769,16.49611437,2987.7,2987.6,5.135]
[1752259050992,16.93071437,2987.7,2987.6,5.135]
[1752259052178,18.04071437,2987.7,2987.6,5.135]
[1752259053698,17.60611437,2987.7,2987.6,5.3591]
[1752259053903,17.60611437,2987.7,2987.6,8.70626829]
[1752259054473,18.71611437,2987.7,2987.6,8.87346829]
[1752259056987,19.82611437,2987.7,2987.6,8.87346829]
[1752259057207,19.82611437,2987.7,2987.6,5.5263]
[1752259057392,19.82611437,2987.7,2987.6,5.33567168]
[1752259058484,20.26071437,2987.7,2987.6,5.3012]
[1752259059311,20.26071437,2987.7,2987.6,5.134]
[1752259059512,21.37071437,2987.7,2987.6,5.134]
[1752259059888,24.31294581,2987.7,2987.5,0.001]
[1752259060132,1.8242,2987.6,2987.5,0.001]
[1752259060480,1.8242,2987.6,2987.4,8.027]
[1752259060481,1.2224,2987.5,2986.6,8.1892]
[1752259060818,1.2224,2987.0,2986.7,5.134]
[1752259061018,0.4346,2986.9,2986.7,5.134]
[1752259061377,0.4346,2986.8,2986.7,5.134]
[1752259063094,0.4346,2986.8,2986.6,8.1892]
[1752259063279,0.4346,2986.8,2986.7,5.134]
[1752259064330,0.4346,2986.8,2986.6,8.022]
[1752259064514,0.1672,2986.7,2986.6,8.022]
[1752259064708,0.1672,2986.7,2986.6,13.157]
[1752259064897,0.6018,2986.7,2986.6,13.157]
[1752259065211,0.6018,2986.7,2986.6,8.022]
[1752259065393,0.6018,2986.7,2986.6,13.157]
[1752259065915,0.6018,2986.7,2986.6,8.022]
[1752259066094,0.6018,2986.7,2986.6,13.157]
[1752259066295,0.6018,2986.7,2986.6,8.022]
[1752259066496,0.6018,2986.7,2986.6,13.156]
[1752259068388,1.8509,2986.7,2986.6,8.022]
[1752259068596,2.03599,2986.7,2986.6,13.157]
[1752259068809,1.8509,2986.7,2986.6,13.157]
[1752259070521,1.1482,2987.2,2986.6,13.157]
[1752259070727,1.1482,2987.2,2986.7,0.70539396]
[1752259071019,1.1482,2987.2,2986.8,5.135]
[1752259071020,0.4339,2987.1,2986.8,5.135]
[1752259071193,1.1482,2987.2,2986.8,5.135]
[1752259071392,0.4339,2987.1,2986.8,5.135]
[1752259071812,0.4339,2987.0,2986.8,5.135]
[1752259073056,0.4339,2987.3,2986.8,5.135]
[1752259073549,0.4339,2987.2,2986.8,5.135]
[1752259073842,0.4339,2987.1,2986.8,5.135]
[1752259074212,1.215,2987.4,2986.8,5.135]
[1752259074213,0.4339,2987.0,2986.8,5.135]
[1752259074944,1.215,2987.4,2986.8,5.135]
[1752259075154,0.4339,2986.9,2986.8,5.135]
[1752259080463,1.6489,2986.9,2986.6,8.022]
[1752259080633,0.6011,2986.8,2986.7,5.134]
[1752259081867,1.8305,2986.8,2986.7,5.134]
[1752259082061,2.01355,2986.8,2986.7,5.134]
[1752259082359,1.2294,2986.7,2986.6,8.022]
[1752259082559,1.6633,2986.7,2986.6,13.155]
[1752259082963,11.6633,2986.7,2986.6,13.156]
[1752259083165,11.6633,2986.7,2986.6,5.134]
[1752259083327,13.69275608,2986.7,2986.6,5.134]
[1752259085228,1.6633,2986.7,2986.6,5.134]
[1752259088644,1.6633,2986.7,2986.6,5.133]
[1752259088962,1.2264,2986.6,2986.5,0.001]
[1752259089161,1.6603,2986.6,2986.5,5.134]
[1752259089945,1.6603,2986.6,2986.5,0.001]
[1752259090142,0.9839,2986.6,2986.4,0.001]
[1752259090342,10.55,2986.4,2986.3,0.001]
[1752259090644,1.768,2986.2,2986.1,0.001]
[1752259091032,2.2019,2986.2,2986.1,0.001]
[1752259095081,0.55,2985.7,2985.6,5.134]
[1752259095376,1.6804,2985.7,2985.6,5.134]
[1752259095591,1.84844,2985.7,2985.6,5.134]
[1752259097464,1.6804,2985.7,2985.6,5.134]
[1752259098576,0.4339,2985.7,2985.6,5.134]
[1752259098777,1.261,2985.9,2985.6,5.134]
[1752259098981,0.4746,2986.0,2985.6,5.134]
[1752259099183,0.4746,2985.9,2985.6,5.134]
[1752259099695,1.7356,2986.2,2985.6,5.3611]
[1752259099858,1.90916,2986.2,2985.6,5.3611]
[1752259100058,0.1672,2985.7,2985.6,5.3611]
[1752259103993,1.1338,2986.4,2985.6,5.3611]
[1752259104179,0.55,2986.9,2985.6,5.3611]
[1752259104180,0.1672,2986.0,2985.6,5.3975941]
[1752259104567,0.1672,2986.0,2985.6,8.74694958]
[1752259104893,0.1672,2986.0,2985.6,5.3641]
[1752259105091,0.1672,2986.0,2985.6,5.3945941]
[1752259105473,0.1672,2986.0,2985.7,3.34923227]
[1752259105685,0.4746,2986.6,2985.8,0.03349186]
[1752259105888,0.1672,2986.2,2985.8,0.03349186]
[1752259106065,1.1338,2986.9,2985.9,0.1158]
[1752259106270,0.1672,2986.6,2986.2,0.1158]
[1752259107066,0.4746,2986.5,2986.3,5.133]
[1752259107273,0.1672,2986.4,2986.3,5.133]
[1752259110590,0.1672,2986.4,2986.3,5.132]
[1752259110793,1.1338,2987.1,2986.3,5.132]
[1752259110978,0.4766,2987.5,2986.5,3.34830389]
[1752259111178,0.4766,2987.5,2986.7,0.1158]
[1752259111402,0.4766,2987.5,2986.8,0.03348064]
[1752259111811,0.4766,2987.5,2986.7,0.1158]
[1752259113314,1.1816,2987.4,2986.7,0.1158]
[1752259113517,0.4746,2987.3,2986.7,0.1158]
[1752259114083,0.4746,2987.3,2986.8,5.131]
[1752259114588,0.002,2987.5,2986.8,5.131]
[1752259114811,0.4766,2987.5,2986.8,5.16448064]
[1752259118627,0.4766,2987.5,2986.8,8.5124793]
[1752259118810,0.002,2987.5,2986.8,8.47899866]
[1752259119002,0.002,2987.5,2987.1,12.53127187]
[1752259119186,0.002,2987.5,2987.2,5.16347616]
[1752259120108,0.002,2987.5,2987.2,5.13]
[1752259120492,0.002,2987.5,2986.8,3.34802994]
[1752259120493,0.4746,2987.4,2987.3,5.13]
[1752259120692,1.62,2987.4,2987.3,5.13]
[1752259121103,0.002,2987.5,2987.3,5.13]
[1752259121522,0.1692,2987.5,2987.3,5.13]
[1752259122935,0.1692,2987.5,2987.4,5.129]
[1752259124842,0.1692,2987.5,2987.0,0.1672]
[1752259125012,1.1454,2987.4,2987.1,5.129]
[1752259125212,0.6418,2987.3,2986.8,0.751729]
[1752259125538,0.4746,2987.2,2986.9,5.129]
[1752259125743,0.4746,2987.1,2986.8,0.635929]
[1752259125954,0.4746,2987.0,2986.9,5.129]
[1752259126116,0.4746,2987.0,2986.8,0.468729]
[1752259126309,0.1672,2987.0,2986.9,5.128]
[1752259127135,0.6122,2987.0,2986.9,5.128]
[1752259127736,1.7951,2987.0,2986.9,5.128]
[1752259128037,1.97461,2987.0,2986.9,5.128]
[1752259128235,0.1672,2987.0,2986.9,5.128]
[1752259128921,0.6122,2987.0,2986.9,5.128]
[1752259130963,1.7951,2987.0,2986.8,0.468729]
[1752259131104,1.6279,2987.0,2986.9,5.128]
[1752259131307,1.1829,2987.0,2986.9,5.128]
[1752259131720,1.6279,2987.0,2986.9,5.128]
[1752259132344,1.3185,2986.9,2986.8,0.468729]
[1752259132519,1.93985,2986.9,2986.8,5.596729]
[1752259140160,1.7635,2986.9,2986.8,5.596729]
[1752259140454,0.6122,2986.9,2986.8,5.596729]
[1752259140867,0.1672,2986.9,2986.8,5.596729]
[1752259141358,0.1672,2987.1,2986.8,5.715629]
[1752259141546,0.1672,2987.1,2986.8,9.09417057]
[1752259141873,0.1672,2987.1,2986.8,9.06368993]
[1752259142167,0.1672,2987.1,2987.0,3.34784064]
[1752259142335,0.002,2987.5,2987.1,0.1159]
[1752259142537,0.002,2987.5,2987.2,8.50903467]
[1752259142753,0.002,2987.5,2987.3,3.38097205]
[1752259142949,0.002,2987.5,2987.4,5.127]
[1752259146551,0.002,2987.5,2987.4,5.27637392]
[1752259147847,0.002,2987.5,2987.4,5.27537392]
[1752259149841,0.002,2987.5,2987.4,5.126]
[1752259150563,0.002,2987.5,2987.4,5.15947392]
[1752259151376,0.002,2987.5,2987.4,5.126]
[1752259151676,0.002,2987.5,2987.4,5.15947392]
[1752259151849,0.002,2987.5,2987.4,0.03347392]
[1752259152260,0.1672,2987.4,2986.9,0.1672]
[1752259152464,0.6122,2987.4,2987.0,5.125]
[1752259153476,0.1672,2987.4,2987.1,0.03347728]
[1752259154049,0.1672,2987.4,2987.0,5.125]
[1752259154265,0.6122,2987.4,2987.0,5.125]
[1752259154572,0.445,2987.3,2986.9,0.1672]
[1752259154879,0.445,2987.3,2987.1,5.125]
[1752259155079,0.1672,2987.4,2987.1,5.125]
[1752259155376,0.445,2987.2,2986.8,8.492729]
[1752259155583,0.6122,2987.1,2986.9,5.125]
[1752259155745,0.6122,2987.1,2987.0,5.125]
[1752259155746,0.1672,2987.1,2987.0,5.125]
[1752259156362,0.6122,2987.1,2987.0,5.125]
[1752259156947,0.6122,2987.1,2986.8,8.492729]
[1752259157163,1.621,2987.0,2986.9,5.125]
[1752259157498,0.1672,2986.9,2986.8,8.492729]
[1752259157652,0.6007,2986.9,2986.8,13.617729]
[1752259158595,0.6007,2986.9,2986.8,8.492729]
[1752259158770,0.6007,2986.9,2986.8,13.617729]
[1752259158966,0.6007,2986.9,2986.8,8.492729]
[1752259159184,0.77972,2986.9,2986.8,13.617729]
[1752259159563,0.77972,2986.9,2986.8,8.492729]
[1752259159965,0.77972,2986.9,2986.8,13.617729]
[1752259160987,0.77972,2986.9,2986.8,8.492729]
[1752259161500,1.99832,2986.9,2986.8,13.617729]
[1752259162786,1.99832,2986.9,2986.8,8.492729]
[1752259163153,1.99832,2986.9,2986.8,13.617729]
[1752259168524,1.3858,2986.9,2986.8,13.617729]
[1752259168665,1.3858,2986.9,2986.8,22.34314393]
[1752259168666,0.1672,2986.9,2986.8,22.34314393]
[1752259168982,0.1672,2986.9,2986.8,22.41124393]
[1752259169163,0.1672,2986.9,2986.8,13.617729]
[1752259170565,0.6007,2986.9,2986.8,13.617729]
[1752259173107,0.1672,2986.9,2986.8,13.617729]
[1752259174287,0.1672,2986.9,2986.8,5.592729]
[1752259180894,0.1692,2986.9,2986.8,5.592729]
[1752259181201,0.6027,2986.9,2986.8,0.468729]
[1752259181397,0.77651,2986.9,2986.8,0.468729]
[1752259181596,0.77651,2986.9,2986.8,5.591729]
[1752259181824,0.77651,2986.9,2986.8,0.468729]
[1752259182034,0.77651,2986.9,2986.8,5.591729]
[1752259182035,1.90991,2986.9,2986.8,5.591729]
[1752259182613,1.90991,2986.9,2986.8,0.468729]
[1752259182802,1.90991,2986.9,2986.8,5.591729]
[1752259188120,1.91031,2986.9,2986.8,5.591729]
[1752259192011,1.6584,2986.8,2986.1,8.026]
[1752259192335,1.1084,2986.6,2986.2,5.123]
[1752259192547,0.4339,2986.5,2986.2,5.123]
[1752259193546,0.4339,2986.4,2986.2,5.123]
[1752259194303,0.4339,2986.3,2986.2,5.123]
[1752259194508,1.1084,2986.6,2986.2,5.123]
[1752259194738,1.5423,2986.6,2986.2,5.123]
[1752259194941,0.4339,2986.5,2986.2,5.123]
[1752259195910,0.4339,2986.7,2986.2,5.123]
[1752259196446,1.1863,2986.8,2986.2,5.123]
[1752259196644,0.4339,2986.6,2986.2,5.123]
[1752259196959,1.1863,2986.8,2986.2,5.123]
[1752259197113,0.4339,2986.5,2986.2,5.123]
[1752259197314,0.4339,2986.4,2986.2,5.123]
[1752259197652,0.4339,2986.3,2986.2,5.123]
[1752259198852,0.4339,2986.5,2986.2,5.123]
[1752259199242,1.1863,2986.8,2986.2,5.123]
[1752259199553,0.4339,2986.7,2986.2,5.123]
[1752259200414,0.4339,2986.6,2986.2,5.123]
[1752259200839,0.4339,2986.5,2986.2,5.123]
[1752259201655,1.1863,2986.8,2986.2,5.123]
[1752259201860,0.1672,2986.3,2986.2,5.123]
[1752259215586,0.1672,2986.3,2986.2,5.1896]
[1752259218158,0.1672,2986.3,2986.2,5.22308737]
[1752259218687,0.6168,2986.3,2986.2,5.12]
[1752259218850,0.79787,2986.3,2986.2,5.12]
[1752259220477,0.79787,2986.3,2986.1,8.027]
[1752259220683,0.34827,2986.3,2986.2,5.12]
[1752259221272,0.79787,2986.3,2986.2,5.12]
[1752259221466,0.79787,2986.3,2986.1,8.027]
[1752259221675,1.6435,2986.2,2986.1,8.027]
[1752259221875,1.842677,2986.2,2986.1,13.147]
[1752259222281,1.842677,2986.2,2986.1,5.121]
[1752259227874,1.842677,2986.2,2986.1,0.001]
[1752259228186,1.769277,2986.2,2986.1,5.121]
[1752259231985,0.199177,2986.2,2986.1,5.121]
[1752259232288,0.1672,2986.3,2986.1,5.121]
[1752259233381,0.1672,2986.3,2986.1,0.001]
[1752259233579,1.6188,2986.2,2986.1,0.001]
[1752259233772,1.6188,2986.2,2986.1,5.12]
[1752259233960,1.7974,2986.2,2986.1,5.12]
[1752259234665,1.6188,2986.2,2986.1,5.12]
[1752259235889,1.6188,2986.2,2986.1,0.001]
[1752259236096,1.6188,2986.2,2986.1,5.12]
[1752259236602,1.6188,2986.2,2986.1,0.001]
[1752259236811,1.6188,2986.2,2986.1,5.12]
[1752259236968,2.62521409,2986.2,2986.1,5.12]
[1752259238113,2.62521409,2986.2,2986.1,0.001]
[1752259238281,2.62521409,2986.2,2986.1,5.12]
[1752259244182,2.62521409,2986.2,2986.1,0.001]
[1752259244400,13.17191409,2986.2,2986.1,5.119]
[1752259244885,13.17191409,2986.2,2986.1,0.001]
[1752259245815,11.7107,2986.1,2985.5,0.001]
[1752259246001,9.98884091,2985.6,2985.5,0.001]
[1752259246411,10.43844091,2985.6,2985.5,5.119]
[1752259247012,20.43844091,2985.6,2985.5,5.119]
[1752259247588,20.43844091,2985.6,2985.5,0.001]
[1752259247933,22.482285,2985.6,2985.5,0.001]
[1752259248098,22.482285,2985.6,2985.5,5.119]
[1752259249827,1.33391141,2986.1,2985.5,5.119]
[1752259250035,1.6198,2986.2,2985.5,5.119]
[1752259251314,8.27814091,2985.9,2985.6,5.118]
[1752259251616,1.1213,2985.7,2985.6,5.118]
[1752259251919,0.4413,2985.7,2985.6,5.118]
[1752259253637,1.2885,2985.6,2985.5,0.001]
[1752259253807,9.56664091,2985.6,2985.5,5.119]
[1752259254012,10.55794091,2985.6,2985.5,5.119]
[1752259254195,12.69651641,2985.6,2985.5,5.119]
[1752259254848,3.4270755,2985.6,2985.5,5.119]
[1752259255133,0.1672,2985.6,2985.5,5.119]
[1752259264649,0.1672,2985.6,2985.5,5.118]
[1752259270013,1.2772,2985.6,2985.5,5.118]
[1752259272549,2.3872,2985.6,2985.5,5.118]
[1752259275542,3.4972,2985.6,2985.5,5.118]
[1752259275845,3.33,2985.6,2985.5,5.121]
[1752259277921,4.44,2985.6,2985.5,5.121]
[1752259278506,4.44,2985.6,2985.5,5.118]
[1752259278948,4.44,2985.6,2985.5,0.001]
[1752259279150,4.44,2985.6,2985.5,5.116]
[1752259280444,5.55,2985.6,2985.5,5.116]
[1752259282807,6.66,2985.6,2985.5,5.116]
[1752259283554,6.66,2985.6,2985.5,18.91633489]
[1752259285345,7.77,2985.6,2985.5,18.91633489]
[1752259285511,7.77,2985.6,2985.5,19.46633489]
[1752259287256,7.77,2985.6,2985.5,19.71587496]
[1752259287636,8.88,2985.6,2985.5,19.71587496]
[1752259288325,8.88,2985.6,2985.5,14.05087496]
[1752259288525,8.88,2985.6,2985.5,26.99420367]
[1752259290047,9.99,2985.6,2985.5,26.99420367]
[1752259291060,9.99,2985.6,2985.5,3.60006276]
[1752259291257,9.99,2985.6,2985.5,8.46352269]
[1752259291424,9.99,2985.6,2985.5,10.001]
[1752259291627,9.99,2985.6,2985.5,0.001]
[1752259291955,9.99,2985.6,2985.5,5.114]
[1752259292557,11.1,2985.6,2985.5,5.114]
[1752259295359,12.21,2985.6,2985.5,5.114]
[1752259295729,12.21,2985.6,2985.5,0.001]
[1752259295930,12.21,2985.6,2985.5,5.114]
[1752259297665,13.32,2985.6,2985.5,5.114]
[1752259299440,13.771,2985.6,2985.5,0.001]
[1752259299649,13.771,2985.6,2985.5,5.113]
[1752259300042,14.881,2985.6,2985.5,5.113]
[1752259301569,14.43,2985.6,2985.5,5.113]
[1752259302534,15.54,2985.6,2985.5,5.113]
[1752259304971,16.65,2985.6,2985.5,5.113]
[1752259305737,16.65,2985.6,2985.5,16.7406636]
[1752259305937,16.65,2985.6,2985.5,13.39114091]
[1752259306767,16.65,2985.6,2985.5,5.113]
[1752259306958,16.65,2985.6,2985.5,5.14649522]
[1752259307348,17.76,2985.6,2985.5,5.14649522]
[1752259309973,18.87,2985.6,2985.5,5.14649522]
[1752259310672,18.87,2985.6,2985.5,8.49601791]
[1752259310873,18.87,2985.6,2985.5,8.46252269]
[1752259312471,19.98,2985.6,2985.5,8.46252269]
[1752259313169,19.98,2985.6,2985.5,5.113]
[1752259313559,19.98,2985.6,2985.5,5.14649522]
[1752259314155,19.98,2985.6,2985.5,8.49601791]
[1752259314341,19.98,2985.6,2985.5,5.113]
[1752259314540,21.09,2985.6,2985.5,5.113]
[1752259314745,21.09,2985.6,2985.5,5.14649522]
[1752259316082,21.09,2985.6,2985.5,5.113]
[1752259317179,22.2,2985.6,2985.5,5.113]
[1752259318185,22.2,2985.6,2985.5,0.001]
[1752259318386,25.9352,2985.6,2985.5,0.001]
[1752259318563,25.9352,2985.6,2985.5,5.112]
[1752259319560,27.0452,2985.6,2985.5,0.001]
[1752259319785,27.0452,2985.6,2985.5,5.112]
[1752259319973,27.0689,2985.6,2985.5,0.001]
[1752259320175,27.0689,2985.6,2985.5,5.112]
[1752259322056,28.1789,2985.6,2985.5,5.112]
[1752259324690,29.2889,2985.6,2985.5,5.112]
[1752259325571,29.8389,2985.6,2985.5,0.001]
[1752259325761,0.55,2985.3,2985.0,0.001]
[1752259325956,11.016,2985.0,2983.9,8.1962]
[1752259326192,1.0375,2984.8,2984.4,5.111]
[1752259326383,1.0375,2984.6,2984.4,5.111]
[1752259326569,0.4514,2984.5,2984.4,5.111]
[1752259328172,0.4514,2984.5,2983.9,8.029]
[1752259328494,0.4514,2984.5,2984.4,5.111]
[1752259328711,0.4514,2984.5,2983.9,8.029]
[1752259328886,1.2299,2984.4,2983.9,8.029]
[1752259329091,1.39803,2984.4,2984.3,5.111]
[1752259329394,1.84943,2984.4,2984.3,5.111]
[1752259331719,1.6813,2984.4,2984.3,5.111]
[1752259331905,0.1672,2984.4,2984.3,5.111]
[1752259332106,0.1672,2984.4,2984.3,5.5588122]
[1752259332406,0.1672,2984.4,2984.3,8.90968175]
[1752259332582,0.1672,2984.4,2984.3,5.5588122]
[1752259332783,0.1672,2984.4,2984.3,5.59232089]
[1752259333120,0.1672,2984.4,2984.3,5.112]
[1752259333418,0.6186,2984.4,2984.3,5.112]
[1752259333588,0.1672,2984.4,2984.3,0.001]
[1752259333783,0.6186,2984.4,2984.3,0.001]
[1752259334016,0.6186,2984.4,2984.3,5.112]
[1752259334216,0.79,2984.4,2984.3,5.112]
[1752259334802,0.79,2984.4,2984.3,0.001]
[1752259335118,0.79,2984.4,2984.3,5.112]
[1752259337096,0.79,2984.4,2984.3,0.001]
[1752259337436,0.79,2984.4,2984.3,5.112]
[1752259337755,0.1672,2984.4,2984.3,5.112]
[1752259337915,0.1672,2984.4,2984.3,5.5598122]
[1752259338232,0.4351,2984.9,2984.3,5.5598122]
[1752259338427,0.1672,2984.7,2984.3,5.112]
[1752259338837,0.6023,2984.7,2984.3,5.112]
[1752259339439,0.1672,2984.7,2984.3,8.4627601]
[1752259339635,0.1672,2984.7,2984.4,0.03350757]
[1752259341234,0.1672,2984.7,2984.3,5.112]
[1752259341438,0.4351,2984.6,2984.3,5.112]
[1752259344704,0.1672,2984.7,2984.3,5.112]
[1752259344926,0.6023,2984.7,2984.3,5.112]
[1752259346819,0.6023,2984.7,2984.4,0.03350757]
[1752259347016,0.6023,2984.7,2984.3,5.112]
[1752259348823,0.6023,2984.7,2984.4,0.03350757]
[1752259349016,0.6023,2984.7,2984.2,8.1992]
[1752259349233,0.6023,2984.7,2984.3,0.03350869]
[1752259350223,0.6023,2984.7,2984.4,5.11]
[1752259350422,0.6023,2984.7,2984.5,0.03350644]
[1752259351451,0.6023,2984.7,2984.4,5.14350757]
[1752259351634,0.1672,2984.7,2984.4,5.14350757]
[1752259352148,0.6023,2984.7,2984.4,5.14350757]
[1752259353648,0.6023,2984.7,2984.4,5.11]
[1752259353823,0.6023,2984.7,2984.4,5.14350757]
[1752259354024,0.6023,2984.7,2984.4,5.11]
[1752259354343,0.6023,2984.7,2984.4,5.14350757]
[1752259355232,0.4351,2984.6,2984.2,8.1992]
[1752259355419,1.5078,2984.5,2984.2,8.032]
[1752259355621,0.1672,2984.3,2984.2,8.032]
[1752259355823,0.77315077,2984.3,2984.2,13.142]
[1752259357650,0.77315077,2984.3,2984.2,8.032]
[1752259357855,0.6023,2984.3,2984.2,13.141]
[1752259358014,0.1672,2984.3,2984.2,13.141]
[1752259358215,0.1672,2984.5,2984.2,13.141]
[1752259358446,0.6023,2984.5,2984.3,0.001]
[1752259358648,0.6023,2984.5,2984.4,5.109]
[1752259360424,0.1672,2984.5,2984.4,5.109]
[1752259365450,0.1672,2984.5,2984.4,8.45975727]
[1752259365628,0.002,2984.8,2984.4,5.5568122]
[1752259365835,0.002,2984.8,2984.5,0.03350644]
[1752259366026,0.002,2984.8,2984.6,5.109]
[1752259366239,0.002,2984.8,2984.7,0.0335042]
[1752259368380,0.002,2984.8,2984.7,3.38392467]
[1752259368967,0.002,2984.8,2984.7,3.55112467]
[1752259370273,0.002,2984.8,2984.7,0.2007042]
[1752259370573,0.002,2984.8,2984.7,3.51762047]
[1752259371077,0.002,2984.8,2984.7,0.1672]
[1752259371379,0.002,2984.8,2984.7,3.55112467]
[1752259371553,0.002,2984.8,2984.7,0.2007042]
[1752259371756,0.002,2984.8,2984.7,3.55112467]
[1752259372844,0.002,2984.8,2984.7,2.71832467]
[1752259373039,0.002,2984.8,2984.7,2.73507211]
[1752259373489,0.002,2984.8,2984.7,13.18288431]
[1752259373667,0.002,2984.8,2984.7,13.16613687]
[1752259374179,0.002,2984.8,2984.7,12.71832467]
[1752259374393,0.002,2984.8,2984.7,0.1672]
[1752259374596,0.002,2984.8,2984.7,5.107]
[1752259374891,0.4689,2984.8,2984.7,5.107]
[1752259376494,0.4689,2984.8,2984.7,5.12374744]
[1752259376795,0.002,2984.8,2984.7,5.12374744]
[1752259376968,0.4689,2984.8,2984.7,5.107]
[1752259379965,0.9614,2984.7,2984.3,0.001]
[1752259380205,0.9614,2984.7,2984.4,5.107]
[1752259380206,0.1672,2984.5,2984.4,5.107]
[1752259380759,0.002,2984.8,2984.4,5.107]
[1752259381103,0.002,2984.8,2984.7,21.638476]
[1752259381410,0.002,2984.8,2984.7,27.3604882]
[1752259382975,0.002,2984.8,2984.7,26.912676]
[1752259384113,0.002,2984.8,2984.7,22.06152572]
[1752259384299,0.002,2984.8,2984.7,27.16752572]
[1752259385726,0.002,2984.8,2984.7,10.42304972]
[1752259385885,0.002,2984.8,2984.7,18.87947019]
[1752259389603,0.002,2984.8,2984.7,5.2722]
[1752259389973,0.4689,2984.8,2984.7,5.2722]
[1752259390894,0.4689,2984.8,2984.7,0.1672]
[1752259391069,0.4689,2984.8,2984.7,8.62262047]
[1752259391701,0.4689,2984.8,2984.7,5.2722]
[1752259391919,0.4689,2984.8,2984.7,8.62262047]
[1752259392107,0.002,2984.8,2984.7,8.62262047]
[1752259392276,0.002,2984.8,2984.7,5.2722]
[1752259392492,0.002,2984.8,2984.7,5.28894744]
[1752259392691,0.002,2984.8,2984.7,8.63936791]
[1752259392990,0.002,2984.8,2984.7,8.62262047]
[1752259393191,0.002,2984.8,2984.7,5.2722]
[1752259393391,0.002,2984.8,2984.7,5.28894744]
[1752259394229,0.002,2984.8,2984.7,8.63936791]
[1752259394430,0.002,2984.8,2984.7,8.62262047]
[1752259396728,0.4689,2984.8,2984.7,5.2722]
[1752259396933,0.002,2984.8,2984.7,8.62262047]
[1752259397645,0.002,2984.8,2984.7,5.2722]
[1752259397831,0.002,2984.8,2984.7,5.28894744]
[1752259398140,0.002,2984.8,2984.7,8.63936791]
[1752259398332,0.002,2984.8,2984.7,5.2722]
[1752259398521,0.4295,2984.8,2984.7,8.63936791]
[1752259398706,0.4295,2984.8,2984.7,8.62262047]
[1752259399549,0.4295,2984.8,2984.7,5.2722]
[1752259399914,0.002,2984.8,2984.7,5.2722]
[1752259400134,0.002,2984.8,2984.7,5.28894744]
[1752259400441,0.4295,2984.8,2984.7,0.1672]
[1752259400627,0.4295,2984.8,2984.7,5.2712]
[1752259400830,0.4295,2984.8,2984.7,5.28794744]
[1752259401447,0.4295,2984.8,2984.7,8.1972]
[1752259401730,0.4295,2984.8,2984.7,13.134]
[1752259401943,0.4295,2984.8,2984.7,8.03]
[1752259402241,0.5967,2984.8,2984.7,8.03]
[1752259402452,1.61187885,2984.8,2984.7,13.134]
[1752259402625,1.57,2984.8,2984.7,13.134]
[1752259408139,1.57,2984.8,2984.7,8.03]
[1752259408460,1.57,2984.8,2984.7,13.134]